[Event "Early-Titled-Tuesday-Blitz-May-07-2024"]
[Site "Chess.com"]
[Date "2024.05.07"]
[Round "6"]
[White "Iskusnyh"]
[Black "kritipatel"]
[Result "1-0"]
[WhiteElo "2599"]
[BlackElo "2191"]
[TimeControl "180+1"]
[EndTime "9:10:11 PDT"]
[Termination "Iskusnyh won on time"]

1. d4 {[%clk 0:03:00.9]} 1... d5 {[%clk 0:02:59.3]} 2. c4 {[%clk 0:03:00.4]}
2... e6 {[%clk 0:02:59.3]} 3. Nf3 {[%clk 0:03:00.2]} 3... Nf6 {[%clk 0:02:59.6]}
4. g3 {[%clk 0:03:00.4]} 4... Be7 {[%clk 0:02:59.5]} 5. Bg2 {[%clk 0:02:59.7]}
5... O-O {[%clk 0:03:00.2]} 6. Qc2 {[%clk 0:02:56.5]} 6... dxc4 {[%clk
0:02:59.8]} 7. Qxc4 {[%clk 0:02:56.2]} 7... a6 {[%clk 0:02:59.8]} 8. Bf4 {[%clk
0:02:43.4]} 8... Nd5 {[%clk 0:02:23.3]} 9. Nc3 {[%clk 0:02:41.4]} 9... b5 {[%clk
0:02:12.9]} 10. Qb3 {[%clk 0:02:38.2]} 10... Bb7 {[%clk 0:02:02.7]} 11. Nxd5
{[%clk 0:02:33.5]} 11... Bxd5 {[%clk 0:02:01.4]} 12. Qc2 {[%clk 0:02:34]} 12...
Bb4+ {[%clk 0:01:46.5]} 13. Bd2 {[%clk 0:02:33.6]} 13... Nc6 {[%clk 0:01:32.6]}
14. Bxb4 {[%clk 0:02:08.1]} 14... Nxb4 {[%clk 0:01:30.8]} 15. Qd2 {[%clk
0:02:00.1]} 15... Nc6 {[%clk 0:01:00]} 16. Rd1 {[%clk 0:01:43.9]} 16... Rb8
{[%clk 0:00:50.8]} 17. O-O {[%clk 0:01:42.4]} 17... Bxa2 {[%clk 0:00:48.3]} 18.
Qc2 {[%clk 0:01:34.7]} 18... Nb4 {[%clk 0:00:39.1]} 19. Qc3 {[%clk 0:01:32.7]}
19... a5 {[%clk 0:00:37]} 20. Ne5 {[%clk 0:01:27.3]} 20... Bd5 {[%clk
0:00:32.5]} 21. e4 {[%clk 0:01:24.1]} 21... Ba8 {[%clk 0:00:28.8]} 22. d5 {[%clk
0:01:20]} 22... exd5 {[%clk 0:00:20.9]} 23. exd5 {[%clk 0:01:19.6]} 23... Bxd5
{[%clk 0:00:20.1]} 24. Bxd5 {[%clk 0:01:14.8]} 24... Nxd5 {[%clk 0:00:13.4]} 25.
Qc5 {[%clk 0:01:13.8]} 25... Qg5 {[%clk 0:00:05.9]} 26. Rxd5 {[%clk 0:01:07.3]}
1-0

[Event "Early-Titled-Tuesday-Blitz-May-07-2024"]
[Site "Chess.com"]
[Date "2024.05.07"]
[Round "6"]
[White "Kirillov_Andrey"]
[Black "TitarovVasiliYouTube"]
[Result "0-1"]
[WhiteElo "2422"]
[BlackElo "2622"]
[TimeControl "180+1"]
[EndTime "9:10:13 PDT"]
[Termination "TitarovVasiliYouTube won by resignation"]

1. e4 {[%clk 0:02:49.9]} 1... Nf6 {[%clk 0:02:59.2]} 2. e5 {[%clk 0:02:47.4]}
2... Nd5 {[%clk 0:02:59.4]} 3. d4 {[%clk 0:02:48.1]} 3... d6 {[%clk 0:02:59.8]}
4. Nf3 {[%clk 0:02:48.9]} 4... dxe5 {[%clk 0:02:59.9]} 5. Nxe5 {[%clk
0:02:49.8]} 5... c6 {[%clk 0:03:00.6]} 6. Be2 {[%clk 0:02:48.8]} 6... Bf5 {[%clk
0:03:00]} 7. O-O {[%clk 0:02:49.1]} 7... e6 {[%clk 0:03:00.6]} 8. c4 {[%clk
0:02:48.9]} 8... Nf6 {[%clk 0:03:00.7]} 9. Nc3 {[%clk 0:02:49.3]} 9... Nbd7
{[%clk 0:03:01.1]} 10. f4 {[%clk 0:02:48.3]} 10... Nxe5 {[%clk 0:02:19.4]} 11.
fxe5 {[%clk 0:02:49.2]} 11... Ne4 {[%clk 0:02:19]} 12. Nxe4 {[%clk 0:02:40.3]}
12... Bxe4 {[%clk 0:02:19.9]} 13. Be3 {[%clk 0:02:40.6]} 13... Be7 {[%clk
0:02:19]} 14. Qb3 {[%clk 0:02:21.9]} 14... Qb6 {[%clk 0:02:05.5]} 15. Qxb6
{[%clk 0:02:03.7]} 15... axb6 {[%clk 0:02:06.4]} 16. Rf4 {[%clk 0:02:01.8]}
16... Bg6 {[%clk 0:02:02.6]} 17. d5 {[%clk 0:02:01.8]} 17... Bg5 {[%clk
0:01:52.1]} 18. d6 {[%clk 0:01:53.9]} 18... Bxf4 {[%clk 0:01:44.2]} 19. Bxf4
{[%clk 0:01:54.8]} 19... Kd7 {[%clk 0:01:32]} 20. Be3 {[%clk 0:01:35]} 20... c5
{[%clk 0:01:18.2]} 21. Bf3 {[%clk 0:01:32]} 21... Ra7 {[%clk 0:01:18.6]} 22. a3
{[%clk 0:01:28.9]} 22... Bc2 {[%clk 0:01:17.2]} 23. Rc1 {[%clk 0:01:26.3]} 23...
Ba4 {[%clk 0:01:16.9]} 24. Kf2 {[%clk 0:01:14.8]} 24... Bc6 {[%clk 0:01:16.7]}
25. Rc3 {[%clk 0:01:11.3]} 25... Bxf3 {[%clk 0:01:14.3]} 26. gxf3 {[%clk
0:01:12.2]} 26... f6 {[%clk 0:01:00.2]} 27. b4 {[%clk 0:01:06.1]} 27... Kc6
{[%clk 0:00:52.6]} 28. f4 {[%clk 0:00:53.4]} 28... Rha8 {[%clk 0:00:48]} 29.
bxc5 {[%clk 0:00:45.4]} 29... bxc5 {[%clk 0:00:48.9]} 30. d7 {[%clk 0:00:40.1]}
30... b6 {[%clk 0:00:46.2]} 31. exf6 {[%clk 0:00:34.9]} 31... gxf6 {[%clk
0:00:46.5]} 0-1

[Event "Early-Titled-Tuesday-Blitz-May-07-2024"]
[Site "Chess.com"]
[Date "2024.05.07"]
[Round "6"]
[White "GMKrikor"]
[Black "Msb2"]
[Result "0-1"]
[WhiteElo "2849"]
[BlackElo "3036"]
[TimeControl "180+1"]
[EndTime "9:10:15 PDT"]
[Termination "Msb2 won on time"]

1. Nf3 {[%clk 0:03:00.9]} 1... d5 {[%clk 0:03:00.3]} 2. c4 {[%clk 0:03:00.2]}
2... e6 {[%clk 0:03:00.8]} 3. d4 {[%clk 0:02:59.9]} 3... Nf6 {[%clk 0:03:01.4]}
4. Nc3 {[%clk 0:02:58.2]} 4... Bb4 {[%clk 0:03:01.3]} 5. cxd5 {[%clk 0:02:57.5]}
5... exd5 {[%clk 0:03:02.2]} 6. Bf4 {[%clk 0:02:56.4]} 6... O-O {[%clk 0:03:02]}
7. e3 {[%clk 0:02:55]} 7... c5 {[%clk 0:03:02.7]} 8. dxc5 {[%clk 0:02:47.8]}
8... Qa5 {[%clk 0:02:56.4]} 9. Bd3 {[%clk 0:02:37.2]} 9... Bxc3+ {[%clk
0:02:46.1]} 10. bxc3 {[%clk 0:02:37.7]} 10... Qxc3+ {[%clk 0:02:47]} 11. Ke2
{[%clk 0:02:26.2]} 11... Qxc5 {[%clk 0:02:42.7]} 12. Rc1 {[%clk 0:02:02.8]}
12... Qe7 {[%clk 0:02:37.3]} 13. Rc7 {[%clk 0:01:49.9]} 13... Qd8 {[%clk
0:02:30.1]} 14. Qc2 {[%clk 0:01:28.8]} 14... Nc6 {[%clk 0:02:27.7]} 15. Rb1
{[%clk 0:01:28.1]} 15... Nh5 {[%clk 0:02:09.7]} 16. Bxh7+ {[%clk 0:01:19]} 16...
Kh8 {[%clk 0:02:08.8]} 17. Bg3 {[%clk 0:01:00.1]} 17... Nxg3+ {[%clk 0:01:26.6]}
18. hxg3 {[%clk 0:00:59.9]} 18... Qxc7 {[%clk 0:01:27.4]} 19. Rh1 {[%clk
0:00:56.8]} 19... g6 {[%clk 0:01:27.9]} 20. Bxg6+ {[%clk 0:00:37.9]} 20... Kg8
{[%clk 0:01:23.2]} 21. Rh7 {[%clk 0:00:20]} 21... Bg4 {[%clk 0:00:57.8]} 22. Qb2
{[%clk 0:00:09.5]} 22... d4 {[%clk 0:00:57.5]} 23. Be4 {[%clk 0:00:05.5]} 23...
Qe5 {[%clk 0:00:52]} 0-1

[Event "Early-Titled-Tuesday-Blitz-May-07-2024"]
[Site "Chess.com"]
[Date "2024.05.07"]
[Round "6"]
[White "aanshnerurkar"]
[Black "th3d4rkness"]
[Result "0-1"]
[WhiteElo "2472"]
[BlackElo "2228"]
[TimeControl "180+1"]
[EndTime "9:10:15 PDT"]
[Termination "th3d4rkness won by resignation"]

1. e4 {[%clk 0:03:00.9]} 1... c5 {[%clk 0:02:59.6]} 2. Nf3 {[%clk 0:03:00.4]}
2... Nc6 {[%clk 0:02:59.1]} 3. Bb5 {[%clk 0:02:59.2]} 3... g6 {[%clk 0:02:58]}
4. O-O {[%clk 0:02:57.8]} 4... Bg7 {[%clk 0:02:58.2]} 5. c3 {[%clk 0:02:58.4]}
5... e5 {[%clk 0:02:46]} 6. d4 {[%clk 0:02:57.4]} 6... cxd4 {[%clk 0:02:45.4]}
7. cxd4 {[%clk 0:02:57.3]} 7... exd4 {[%clk 0:02:29.3]} 8. Bf4 {[%clk
0:02:55.4]} 8... Nge7 {[%clk 0:02:27]} 9. Bd6 {[%clk 0:02:54.3]} 9... O-O {[%clk
0:02:25.8]} 10. Nbd2 {[%clk 0:02:53.4]} 10... a6 {[%clk 0:02:23.4]} 11. Bd3
{[%clk 0:02:50.3]} 11... Re8 {[%clk 0:02:15.2]} 12. b4 {[%clk 0:02:44.6]} 12...
Na7 {[%clk 0:02:02.4]} 13. a4 {[%clk 0:02:34.7]} 13... b6 {[%clk 0:01:51.3]} 14.
Qb3 {[%clk 0:02:33.2]} 14... h6 {[%clk 0:01:47]} 15. Rac1 {[%clk 0:02:05.3]}
15... Nec6 {[%clk 0:01:29.6]} 16. b5 {[%clk 0:01:31.5]} 16... axb5 {[%clk
0:01:28.8]} 17. axb5 {[%clk 0:01:31.8]} 17... Na5 {[%clk 0:01:28.6]} 18. Qb2
{[%clk 0:01:31]} 18... Bb7 {[%clk 0:01:23.9]} 19. Bc7 {[%clk 0:01:30.7]} 19...
Qf6 {[%clk 0:01:23.3]} 20. e5 {[%clk 0:01:14.1]} 20... Qe6 {[%clk 0:01:19.3]}
21. Qxd4 {[%clk 0:00:13.7]} 21... Bxf3 {[%clk 0:01:10]} 22. Nxf3 {[%clk
0:00:11.1]} 22... Nb3 {[%clk 0:01:09.5]} 23. Qe4 {[%clk 0:00:08.9]} 23... Nxc1
{[%clk 0:01:08.8]} 24. Rxc1 {[%clk 0:00:08.6]} 24... Rac8 {[%clk 0:01:07.8]} 25.
h3 {[%clk 0:00:02.8]} 25... d6 {[%clk 0:01:04.7]} 26. Ra1 {[%clk 0:00:01.9]}
26... Rxc7 {[%clk 0:01:02.7]} 0-1

[Event "Early-Titled-Tuesday-Blitz-May-07-2024"]
[Site "Chess.com"]
[Date "2024.05.07"]
[Round "6"]
[White "dzhumagaliev"]
[Black "Sofia_Blokhin"]
[Result "1-0"]
[WhiteElo "2842"]
[BlackElo "2267"]
[TimeControl "180+1"]
[EndTime "9:10:18 PDT"]
[Termination "dzhumagaliev won by checkmate"]

1. Nf3 {[%clk 0:02:59.3]} 1... g6 {[%clk 0:02:57.4]} 2. d4 {[%clk 0:03:00.2]}
2... f5 {[%clk 0:02:56.6]} 3. h4 {[%clk 0:03:00.6]} 3... Nf6 {[%clk 0:02:55]} 4.
h5 {[%clk 0:02:59.7]} 4... Nxh5 {[%clk 0:02:54.3]} 5. Rxh5 {[%clk 0:03:00.3]}
5... gxh5 {[%clk 0:02:54.1]} 6. e4 {[%clk 0:03:01]} 6... d6 {[%clk 0:02:42.9]}
7. Ng5 {[%clk 0:03:00.3]} 7... e6 {[%clk 0:02:03.3]} 8. Qxh5+ {[%clk 0:02:57.9]}
8... Kd7 {[%clk 0:02:02.7]} 9. Bc4 {[%clk 0:02:50.5]} 9... d5 {[%clk 0:01:44.6]}
10. Nf7 {[%clk 0:02:00.1]} 10... Qe8 {[%clk 0:01:32]} 11. Ne5+ {[%clk
0:01:59.7]} 11... Kd8 {[%clk 0:01:27.8]} 12. Bg5+ {[%clk 0:01:59.5]} 12... Be7
{[%clk 0:01:27.2]} 13. Bxe7+ {[%clk 0:01:45]} 13... Qxe7 {[%clk 0:01:17.2]} 14.
Nf7+ {[%clk 0:01:39.5]} 14... Kd7 {[%clk 0:01:13.2]} 15. Nxh8 {[%clk 0:01:30.9]}
15... dxc4 {[%clk 0:01:12]} 16. Nc3 {[%clk 0:01:29.1]} 16... Nc6 {[%clk
0:01:06.5]} 17. O-O-O {[%clk 0:01:25.5]} 17... Qg7 {[%clk 0:00:57.1]} 18. d5
{[%clk 0:01:22.3]} 18... Qxh8 {[%clk 0:00:51.2]} 19. dxe6+ {[%clk 0:01:06.5]}
19... Kxe6 {[%clk 0:00:43.3]} 20. Qxf5+ {[%clk 0:01:06.6]} 20... Ke7 {[%clk
0:00:39.3]} 21. Nd5+ {[%clk 0:01:07]} 21... Ke8 {[%clk 0:00:37.4]} 22. Nxc7+
{[%clk 0:01:07.1]} 22... Ke7 {[%clk 0:00:36.5]} 23. Qc5+ {[%clk 0:01:07.3]}
23... Kf7 {[%clk 0:00:34.4]} 24. Qxc4+ {[%clk 0:01:06.5]} 24... Kg6 {[%clk
0:00:33.3]} 25. Rd6+ {[%clk 0:01:04.3]} 25... Kg5 {[%clk 0:00:31.8]} 26. Qc5+
{[%clk 0:01:00.4]} 26... Ne5 {[%clk 0:00:28.8]} 27. Nxa8 {[%clk 0:00:58.6]}
27... Bg4 {[%clk 0:00:19.7]} 28. Qe3+ {[%clk 0:00:57.6]} 28... Kh4 {[%clk
0:00:14.8]} 29. Rh6+ {[%clk 0:00:58.2]} 29... Bh5 {[%clk 0:00:13.4]} 30. Qg3#
{[%clk 0:00:58.7]} 1-0

[Event "Early-Titled-Tuesday-Blitz-May-07-2024"]
[Site "Chess.com"]
[Date "2024.05.07"]
[Round "6"]
[White "jefferyx"]
[Black "DrVelja"]
[Result "1/2-1/2"]
[WhiteElo "3129"]
[BlackElo "2972"]
[TimeControl "180+1"]
[EndTime "9:10:19 PDT"]
[Termination "Game drawn by repetition"]

1. Nf3 {[%clk 0:03:00.9]} 1... Nf6 {[%clk 0:02:59.3]} 2. c4 {[%clk 0:03:00.3]}
2... c6 {[%clk 0:02:59.2]} 3. d4 {[%clk 0:03:00.3]} 3... d5 {[%clk 0:02:59.7]}
4. cxd5 {[%clk 0:03:01.2]} 4... cxd5 {[%clk 0:03:00]} 5. Nc3 {[%clk 0:03:01.9]}
5... Nc6 {[%clk 0:03:00.6]} 6. Bf4 {[%clk 0:03:02.4]} 6... Bf5 {[%clk
0:03:00.9]} 7. Qb3 {[%clk 0:03:02]} 7... Na5 {[%clk 0:03:00.3]} 8. Qa4+ {[%clk
0:03:02]} 8... Bd7 {[%clk 0:03:01]} 9. Qc2 {[%clk 0:03:02.5]} 9... e6 {[%clk
0:03:01.7]} 10. e3 {[%clk 0:03:01.4]} 10... Rc8 {[%clk 0:03:02.3]} 11. Bd3
{[%clk 0:03:01.6]} 11... Bb4 {[%clk 0:03:02.9]} 12. O-O {[%clk 0:03:01.7]} 12...
Nh5 {[%clk 0:03:03.2]} 13. Be5 {[%clk 0:03:01.3]} 13... f6 {[%clk 0:03:03.3]}
14. Bg3 {[%clk 0:03:01.6]} 14... Nxg3 {[%clk 0:03:00.6]} 15. hxg3 {[%clk
0:03:02.5]} 15... Nc4 {[%clk 0:03:01.2]} 16. Rfc1 {[%clk 0:02:57.2]} 16... Nd6
{[%clk 0:03:00.4]} 17. Qe2 {[%clk 0:02:49.3]} 17... O-O {[%clk 0:02:54]} 18. Nd2
{[%clk 0:02:47.3]} 18... Qe7 {[%clk 0:02:43.2]} 19. a3 {[%clk 0:02:37.9]} 19...
Bxc3 {[%clk 0:02:26.2]} 20. bxc3 {[%clk 0:02:38.8]} 20... Rc7 {[%clk 0:02:24.8]}
21. e4 {[%clk 0:02:24.6]} 21... dxe4 {[%clk 0:02:23.6]} 22. Nxe4 {[%clk
0:02:25.5]} 22... Nxe4 {[%clk 0:02:20.8]} 23. Qxe4 {[%clk 0:02:26.4]} 23... g6
{[%clk 0:02:18.2]} 24. c4 {[%clk 0:02:25.2]} 24... Bc6 {[%clk 0:02:13.6]} 25.
Qe3 {[%clk 0:02:24.5]} 25... Rd7 {[%clk 0:02:09]} 26. Re1 {[%clk 0:02:21.8]}
26... Qd6 {[%clk 0:02:01.8]} 27. Rad1 {[%clk 0:02:14]} 27... Kg7 {[%clk
0:01:52.7]} 28. Bf1 {[%clk 0:01:55.8]} 28... Rfd8 {[%clk 0:01:50.6]} 29. Be2
{[%clk 0:01:38.3]} 29... h5 {[%clk 0:01:12.2]} 30. c5 {[%clk 0:01:32.4]} 30...
Qf8 {[%clk 0:01:06]} 31. Bf3 {[%clk 0:01:14.6]} 31... Bxf3 {[%clk 0:01:03.6]}
32. Qxf3 {[%clk 0:01:15.5]} 32... e5 {[%clk 0:01:03.3]} 33. dxe5 {[%clk
0:00:59.6]} 33... Rxd1 {[%clk 0:01:01.2]} 34. Rxd1 {[%clk 0:01:00.5]} 34...
Rxd1+ {[%clk 0:00:59.6]} 35. Qxd1 {[%clk 0:01:01.4]} 35... fxe5 {[%clk
0:01:00.2]} 36. Qd5 {[%clk 0:00:45.8]} 36... Qe7 {[%clk 0:01:00.8]} 37. a4
{[%clk 0:00:45.9]} 37... Kf6 {[%clk 0:00:54.3]} 38. a5 {[%clk 0:00:45.7]} 38...
Qc7 {[%clk 0:00:49.3]} 39. Qf3+ {[%clk 0:00:44.1]} 39... Ke7 {[%clk 0:00:47.4]}
40. Qd5 {[%clk 0:00:43.8]} 40... Kf6 {[%clk 0:00:46.6]} 41. Qf3+ {[%clk
0:00:40.2]} 41... Ke7 {[%clk 0:00:47]} 42. Qd5 {[%clk 0:00:39.8]} 42... Kf6
{[%clk 0:00:47.5]} 1/2-1/2

[Event "Early-Titled-Tuesday-Blitz-May-07-2024"]
[Site "Chess.com"]
[Date "2024.05.07"]
[Round "6"]
[White "MarkusRagger"]
[Black "Kazmin_Semyon"]
[Result "0-1"]
[WhiteElo "2809"]
[BlackElo "2617"]
[TimeControl "180+1"]
[EndTime "9:10:20 PDT"]
[Termination "Kazmin_Semyon won by resignation"]

1. d4 {[%clk 0:02:58.9]} 1... Nf6 {[%clk 0:02:59.3]} 2. Nf3 {[%clk 0:02:58.8]}
2... e6 {[%clk 0:02:59.7]} 3. c4 {[%clk 0:02:58.3]} 3... d5 {[%clk 0:02:58.6]}
4. g3 {[%clk 0:02:58.6]} 4... c6 {[%clk 0:02:53.6]} 5. Bg2 {[%clk 0:02:56.8]}
5... dxc4 {[%clk 0:02:53.9]} 6. O-O {[%clk 0:02:51.7]} 6... b5 {[%clk
0:02:51.4]} 7. Ne5 {[%clk 0:02:47.3]} 7... Bb7 {[%clk 0:02:51.7]} 8. e4 {[%clk
0:02:43.8]} 8... Nbd7 {[%clk 0:02:48.7]} 9. Nxf7 {[%clk 0:02:36.6]} 9... Kxf7
{[%clk 0:02:47.8]} 10. e5 {[%clk 0:02:36.9]} 10... Nd5 {[%clk 0:02:39.4]} 11.
Nd2 {[%clk 0:02:36.8]} 11... Be7 {[%clk 0:02:28.8]} 12. Ne4 {[%clk 0:02:35.3]}
12... Re8 {[%clk 0:02:25.3]} 13. Bh3 {[%clk 0:02:29]} 13... Nf8 {[%clk
0:02:23.4]} 14. f4 {[%clk 0:02:23.1]} 14... Kg8 {[%clk 0:02:16.8]} 15. f5 {[%clk
0:02:23.1]} 15... exf5 {[%clk 0:02:13.8]} 16. Bxf5 {[%clk 0:02:22.7]} 16... Bc8
{[%clk 0:02:14.2]} 17. Qf3 {[%clk 0:02:12.3]} 17... Bxf5 {[%clk 0:02:04.4]} 18.
Qxf5 {[%clk 0:02:12.7]} 18... Qd7 {[%clk 0:02:02.2]} 19. Qh5 {[%clk 0:02:02.5]}
19... Qe6 {[%clk 0:01:32.5]} 20. Bd2 {[%clk 0:01:55.5]} 20... Qg6 {[%clk
0:01:26.1]} 21. Qe2 {[%clk 0:01:50.9]} 21... Ne6 {[%clk 0:01:22.9]} 22. Bc3
{[%clk 0:01:40.1]} 22... b4 {[%clk 0:01:18.7]} 23. Rae1 {[%clk 0:01:30.9]} 23...
bxc3 {[%clk 0:01:18.1]} 24. bxc3 {[%clk 0:01:31.8]} 24... Nb6 {[%clk 0:01:10.7]}
25. Qg2 {[%clk 0:00:56.1]} 25... Rf8 {[%clk 0:01:00.7]} 26. Nd6 {[%clk
0:00:55.4]} 26... Bxd6 {[%clk 0:00:48.3]} 27. exd6 {[%clk 0:00:56.3]} 27...
Rxf1+ {[%clk 0:00:48.9]} 28. Qxf1 {[%clk 0:00:55.6]} 28... Rd8 {[%clk
0:00:42.3]} 29. Qe2 {[%clk 0:00:51.4]} 29... Rxd6 {[%clk 0:00:39.7]} 30. Qe5
{[%clk 0:00:52]} 30... Nf8 {[%clk 0:00:38.6]} 31. Qc5 {[%clk 0:00:42.3]} 31...
Re6 {[%clk 0:00:37.2]} 32. Rf1 {[%clk 0:00:42.6]} 32... Rf6 {[%clk 0:00:37.3]}
33. Re1 {[%clk 0:00:40.4]} 33... Qf5 {[%clk 0:00:37.1]} 34. Qxf5 {[%clk
0:00:39.6]} 34... Rxf5 {[%clk 0:00:38]} 0-1

[Event "Early-Titled-Tuesday-Blitz-May-07-2024"]
[Site "Chess.com"]
[Date "2024.05.07"]
[Round "6"]
[White "StelaSfw"]
[Black "Alenzer"]
[Result "0-1"]
[WhiteElo "1646"]
[BlackElo "2223"]
[TimeControl "180+1"]
[EndTime "9:10:21 PDT"]
[Termination "Alenzer won by resignation"]

1. e4 {[%clk 0:02:59.8]} 1... c5 {[%clk 0:02:59.7]} 2. Nf3 {[%clk 0:03:00.2]}
2... e6 {[%clk 0:02:58.2]} 3. c3 {[%clk 0:02:59.3]} 3... d5 {[%clk 0:02:57.1]}
4. exd5 {[%clk 0:02:59]} 4... exd5 {[%clk 0:02:57.2]} 5. d4 {[%clk 0:02:58.8]}
5... Nf6 {[%clk 0:02:57.8]} 6. Be2 {[%clk 0:02:57.4]} 6... Nc6 {[%clk 0:02:58]}
7. O-O {[%clk 0:02:57.7]} 7... Bd6 {[%clk 0:02:58.7]} 8. h3 {[%clk 0:02:57.5]}
8... O-O {[%clk 0:02:58.9]} 9. Bg5 {[%clk 0:02:58.2]} 9... h6 {[%clk 0:02:58.7]}
10. Bh4 {[%clk 0:02:58.2]} 10... g5 {[%clk 0:02:54.5]} 11. Bg3 {[%clk 0:02:58]}
11... Ne4 {[%clk 0:02:55.1]} 12. Bh2 {[%clk 0:02:57]} 12... f5 {[%clk
0:02:47.5]} 13. Nbd2 {[%clk 0:02:55.1]} 13... f4 {[%clk 0:02:33.9]} 14. Re1
{[%clk 0:02:53.5]} 14... Qf6 {[%clk 0:02:24.3]} 15. Bb5 {[%clk 0:02:45]} 15...
Bf5 {[%clk 0:02:16.8]} 16. Bxc6 {[%clk 0:02:41.9]} 16... bxc6 {[%clk 0:02:16.2]}
17. dxc5 {[%clk 0:02:09.9]} 17... Bxc5 {[%clk 0:02:15.8]} 18. Nxe4 {[%clk
0:02:01.7]} 18... dxe4 {[%clk 0:02:11.4]} 19. Nd4 {[%clk 0:01:56]} 19... Rad8
{[%clk 0:01:55.8]} 20. Qa4 {[%clk 0:01:47.7]} 20... Bxd4 {[%clk 0:01:47.6]} 21.
cxd4 {[%clk 0:01:46.8]} 21... Rxd4 {[%clk 0:01:45.9]} 22. Qxa7 {[%clk
0:01:45.8]} 22... Rf7 {[%clk 0:01:46.2]} 23. Qb8+ {[%clk 0:01:36.9]} 23... Kh7
{[%clk 0:01:44.3]} 24. Qb3 {[%clk 0:01:33.8]} 24... c5 {[%clk 0:01:39.9]} 25.
Rad1 {[%clk 0:01:31.9]} 25... Rfd7 {[%clk 0:01:37.4]} 26. Rxd4 {[%clk
0:01:31.2]} 26... cxd4 {[%clk 0:01:37.6]} 27. a4 {[%clk 0:01:26.6]} 27... e3
{[%clk 0:01:31.6]} 28. fxe3 {[%clk 0:01:25.5]} 28... fxe3 {[%clk 0:01:27.4]} 29.
Rf1 {[%clk 0:01:19.7]} 29... e2 {[%clk 0:01:23.2]} 30. Re1 {[%clk 0:01:15.3]}
30... d3 {[%clk 0:01:23.2]} 31. Bg3 {[%clk 0:00:34.2]} 31... d2 {[%clk
0:01:17.7]} 32. Ra1 {[%clk 0:00:30.6]} 32... d1=Q+ {[%clk 0:01:15.5]} 33. Rxd1
{[%clk 0:00:27.2]} 33... exd1=Q+ {[%clk 0:01:14.9]} 34. Qxd1 {[%clk 0:00:26]}
34... Rxd1+ {[%clk 0:01:14.6]} 35. Kh2 {[%clk 0:00:25.7]} 35... Qd4 {[%clk
0:01:12.1]} 0-1

[Event "Early-Titled-Tuesday-Blitz-May-07-2024"]
[Site "Chess.com"]
[Date "2024.05.07"]
[Round "6"]
[White "nihalsarin"]
[Black "Nemegejas"]
[Result "1-0"]
[WhiteElo "3144"]
[BlackElo "2826"]
[TimeControl "180+1"]
[EndTime "9:10:27 PDT"]
[Termination "nihalsarin won by resignation"]

1. d4 {[%clk 0:03:00.6]} 1... Nf6 {[%clk 0:02:59.4]} 2. Bg5 {[%clk 0:03:00.2]}
2... d5 {[%clk 0:02:53.4]} 3. Nd2 {[%clk 0:02:59.7]} 3... Nbd7 {[%clk
0:02:49.9]} 4. e3 {[%clk 0:02:51.4]} 4... h6 {[%clk 0:02:50.2]} 5. Bh4 {[%clk
0:02:51]} 5... e5 {[%clk 0:02:50.8]} 6. Ngf3 {[%clk 0:02:50.6]} 6... Bd6 {[%clk
0:02:51]} 7. c4 {[%clk 0:02:47.4]} 7... e4 {[%clk 0:02:29.9]} 8. Ng1 {[%clk
0:02:47.7]} 8... c6 {[%clk 0:02:29.3]} 9. Ne2 {[%clk 0:02:48]} 9... O-O {[%clk
0:02:17.1]} 10. Nc3 {[%clk 0:02:47.8]} 10... Be7 {[%clk 0:02:14.9]} 11. Be2
{[%clk 0:02:47.4]} 11... Nb6 {[%clk 0:02:12.8]} 12. O-O {[%clk 0:02:45.8]} 12...
Be6 {[%clk 0:02:12]} 13. Rc1 {[%clk 0:02:42.6]} 13... Nc8 {[%clk 0:01:38.9]} 14.
Qb3 {[%clk 0:02:29.9]} 14... Rb8 {[%clk 0:01:37.8]} 15. cxd5 {[%clk 0:01:58.1]}
15... cxd5 {[%clk 0:01:36.8]} 16. Nb5 {[%clk 0:01:51.1]} 16... Ne8 {[%clk
0:01:11.1]} 17. Bg3 {[%clk 0:01:47]} 17... Ned6 {[%clk 0:01:04.1]} 18. Nc7
{[%clk 0:01:33.2]} 18... Nb6 {[%clk 0:01:03.9]} 19. Nxe6 {[%clk 0:01:33.1]}
19... fxe6 {[%clk 0:01:04.1]} 20. a4 {[%clk 0:01:27.1]} 20... Nd7 {[%clk
0:00:27.4]} 21. Bg4 {[%clk 0:01:26.7]} 21... Rf6 {[%clk 0:00:24.2]} 22. f3
{[%clk 0:01:22.8]} 22... exf3 {[%clk 0:00:20.6]} 23. Rxf3 {[%clk 0:01:22.3]}
23... Nf8 {[%clk 0:00:21.1]} 24. Rxf6 {[%clk 0:01:15.4]} 24... Bxf6 {[%clk
0:00:22]} 25. Bxe6+ {[%clk 0:01:10.8]} 25... Nxe6 {[%clk 0:00:21.5]} 26. Qxd5
{[%clk 0:01:11.5]} 26... Qe8 {[%clk 0:00:06.7]} 27. Qxd6 {[%clk 0:01:00.7]}
27... Rd8 {[%clk 0:00:07.3]} 28. Qa3 {[%clk 0:01:01.2]} 28... Bg5 {[%clk
0:00:06.6]} 29. Re1 {[%clk 0:01:01.1]} 29... Kh8 {[%clk 0:00:03.9]} 30. Nf3
{[%clk 0:01:00.5]} 30... Be7 {[%clk 0:00:03.1]} 31. Qb3 {[%clk 0:00:59.9]} 31...
Qd7 {[%clk 0:00:03.1]} 32. Ne5 {[%clk 0:00:59.4]} 1-0

[Event "Early-Titled-Tuesday-Blitz-May-07-2024"]
[Site "Chess.com"]
[Date "2024.05.07"]
[Round "6"]
[White "xasid81"]
[Black "PeshkaCh"]
[Result "0-1"]
[WhiteElo "2641"]
[BlackElo "2885"]
[TimeControl "180+1"]
[EndTime "9:10:28 PDT"]
[Termination "PeshkaCh won by resignation"]

1. Nf3 {[%clk 0:02:58.3]} 1... Nf6 {[%clk 0:02:58.3]} 2. d4 {[%clk 0:02:58.3]}
2... e6 {[%clk 0:02:52.2]} 3. g3 {[%clk 0:02:49.5]} 3... d5 {[%clk 0:02:51.6]}
4. Bg2 {[%clk 0:02:49.5]} 4... Be7 {[%clk 0:02:52.2]} 5. O-O {[%clk 0:02:49.9]}
5... O-O {[%clk 0:02:52.8]} 6. b3 {[%clk 0:02:50.6]} 6... c5 {[%clk 0:02:50.3]}
7. Bb2 {[%clk 0:02:51]} 7... Nc6 {[%clk 0:02:50.4]} 8. a3 {[%clk 0:02:43.7]}
8... a5 {[%clk 0:02:49.7]} 9. Nbd2 {[%clk 0:02:39.1]} 9... Bd7 {[%clk
0:02:47.7]} 10. c4 {[%clk 0:02:37.3]} 10... Rc8 {[%clk 0:02:45.3]} 11. e3 {[%clk
0:02:29.7]} 11... h6 {[%clk 0:02:25.7]} 12. Re1 {[%clk 0:02:27.1]} 12... Re8
{[%clk 0:02:10]} 13. cxd5 {[%clk 0:02:13.2]} 13... exd5 {[%clk 0:02:09.5]} 14.
dxc5 {[%clk 0:02:10.7]} 14... Bxc5 {[%clk 0:02:10.4]} 15. Nd4 {[%clk 0:01:59.1]}
15... Nxd4 {[%clk 0:02:10]} 16. Bxd4 {[%clk 0:01:58.4]} 16... Bxd4 {[%clk
0:02:09.5]} 17. exd4 {[%clk 0:01:59.3]} 17... Qb6 {[%clk 0:02:08.5]} 18. Rxe8+
{[%clk 0:01:51.3]} 18... Rxe8 {[%clk 0:02:08]} 19. Nf1 {[%clk 0:01:48.8]} 19...
Ne4 {[%clk 0:02:05.7]} 20. Rc1 {[%clk 0:01:38]} 20... Qf6 {[%clk 0:01:52.4]} 21.
Bxe4 {[%clk 0:01:32.3]} 21... Rxe4 {[%clk 0:01:53.3]} 22. Ne3 {[%clk 0:01:30.1]}
22... Rxd4 {[%clk 0:01:51.3]} 23. Qe1 {[%clk 0:01:28.8]} 23... Bc6 {[%clk
0:01:43.1]} 24. Qxa5 {[%clk 0:01:22.8]} 24... Rd3 {[%clk 0:01:16.8]} 25. Qb6
{[%clk 0:00:35.5]} 25... d4 {[%clk 0:01:02.4]} 26. Nf1 {[%clk 0:00:30.2]} 26...
Qf3 {[%clk 0:00:54]} 27. Rxc6 {[%clk 0:00:28.1]} 27... bxc6 {[%clk 0:00:42.6]}
28. Qd8+ {[%clk 0:00:16.1]} 28... Kh7 {[%clk 0:00:42.8]} 0-1